[Event "Argentine Superior Chess Championship 2023"]
[Site "https://www.chess.com"]
[Date "2023.10.28"]
[Round "1"]
[White "Tokman, Ariel"]
[Black "Acosta, Pablo Ismael"]
[Result "1/2-1/2"]
[Board "1"]
[TimeControl "5400+30"]
[WhiteFideId "117420"]
[BlackFideId "124311"]
[WhiteElo "2306"]
[BlackElo "2482"]
[WhiteTeam "ARG"]
[BlackTeam "ARG"]
[WhiteClock "0:04:49"]
[BlackClock "0:15:03"]

1. Nf3 {[%clk 1:30:55]}  d5 {[%clk 1:30:53]} 2. g3 {[%clk 1:31:20]}  Nf6 {[%clk 1:30:45]} 3. Bg2 {[%clk 1:31:45]}  e6 {[%clk 1:30:55]} 4. O-O {[%clk 1:32:05]}  c5 {[%clk 1:31:20]} 5. d3 {[%clk 1:32:17]}  Nc6 {[%clk 1:31:12]} 6. e4 {[%clk 1:31:13]}  dxe4 {[%clk 1:23:53]} 7. dxe4 {[%clk 1:31:34]}  Qxd1 {[%clk 1:22:53]} 8. Rxd1 {[%clk 1:31:58]}  Nxe4 {[%clk 1:22:47]} 9. Ne5 {[%clk 1:31:33]}  Nxe5 {[%clk 1:18:48]} 10. Bxe4 {[%clk 1:31:57]}  Be7 {[%clk 1:17:16]} 11. a4 {[%clk 1:08:50]}  Nc4 {[%clk 1:04:03]} 12. Na3 {[%clk 1:00:50]}  Nxa3 {[%clk 0:55:45]} 13. Rxa3 {[%clk 1:00:11]}  g5 {[%clk 0:47:24]} 14. Be3 {[%clk 0:30:06]}  Rb8 {[%clk 0:42:57]} 15. Rc3 {[%clk 0:17:20]}  b6 {[%clk 0:39:51]} 16. b4 {[%clk 0:17:12]}  Bf6 {[%clk 0:31:15]} 17. Rc4 {[%clk 0:17:02]}  Ba6 {[%clk 0:28:44]} 18. Bc6+ {[%clk 0:16:30]}  Kf8 {[%clk 0:28:23]} 19. Bb5 {[%clk 0:13:38]}  Bb7 {[%clk 0:25:12]} 20. bxc5 {[%clk 0:14:00]}  Bd5 {[%clk 0:21:20]} 21. cxb6 {[%clk 0:13:46]}  axb6 {[%clk 0:20:03]} 22. Rc7 {[%clk 0:13:13]}  Kg7 {[%clk 0:20:08]} 23. c4 {[%clk 0:11:32]}  Bf3 {[%clk 0:18:08]} 24. Rdd7 {[%clk 0:11:53]}  Rhf8 {[%clk 0:13:05]} 25. c5 {[%clk 0:11:32]}  bxc5 {[%clk 0:13:29]} 26. Bxc5 {[%clk 0:11:46]}  Rfd8 {[%clk 0:13:31]} 27. Rxf7+ {[%clk 0:11:17]}  Kg6 {[%clk 0:13:55]} 28. Rxf6+ {[%clk 0:08:57]}  Kxf6 {[%clk 0:14:18]} 29. Be7+ {[%clk 0:09:24]}  Ke5 {[%clk 0:14:42]} 30. Bxd8 {[%clk 0:09:23]}  Rxd8 {[%clk 0:15:06]} 31. Rc5+ {[%clk 0:08:36]}  Kd4 {[%clk 0:10:30]} 32. Rc1 {[%clk 0:08:54]}  g4 {[%clk 0:08:23]} 33. Bf1 {[%clk 0:06:00]}  Ra8 {[%clk 0:07:39]} 34. Rc4+ {[%clk 0:05:24]}  Ke5 {[%clk 0:04:56]} 35. h3 {[%clk 0:04:51]}  Rb8 {[%clk 0:03:21]} 36. Rc1 {[%clk 0:04:47]}  Ra8 {[%clk 0:02:42]} 37. Ra1 {[%clk 0:03:59]}  Ra5 {[%clk 0:02:14]} 38. Bg2 {[%clk 0:04:15]}  Bxg2 {[%clk 0:01:17]} 39. Kxg2 {[%clk 0:04:40]}  h5 {[%clk 0:01:44]} 40. hxg4 {[%clk 0:33:39]}  hxg4 {[%clk 0:32:08]} 41. f3 {[%clk 0:22:51]}  Kf5 {[%clk 0:30:58]} 42. Ra3 {[%clk 0:20:35]}  e5 {[%clk 0:27:33]} 43. Kf2 {[%clk 0:20:23]}  Kg5 {[%clk 0:26:49]} 44. Ke3 {[%clk 0:19:40]}  gxf3 {[%clk 0:23:24]} 45. Kxf3 {[%clk 0:20:00]}  Kf5 {[%clk 0:23:51]} 46. Ke3 {[%clk 0:17:15]}  Kg4 {[%clk 0:24:01]} 47. Ke4 {[%clk 0:17:29]}  Kg5 {[%clk 0:23:28]} 48. Kd3 {[%clk 0:17:23]}  Kg4 {[%clk 0:22:05]} 49. Kc4 {[%clk 0:17:36]}  e4 {[%clk 0:21:21]} 50. Kd4 {[%clk 0:15:53]}  e3 {[%clk 0:19:55]} 51. Kxe3 {[%clk 0:15:14]}  Kxg3 {[%clk 0:20:19]} 52. Kd4+ {[%clk 0:15:12]}  Kf4 {[%clk 0:20:44]} 53. Kc4 {[%clk 0:15:32]}  Ke5 {[%clk 0:20:09]} 54. Kb4 {[%clk 0:15:52]}  Ra8 {[%clk 0:19:42]} 55. Rd3 {[%clk 0:15:23]}  Rb8+ {[%clk 0:19:08]} 56. Kc5 {[%clk 0:15:36]}  Ra8 {[%clk 0:17:14]} 57. Re3 {[%clk 0:13:28]}  Kf6 {[%clk 0:17:08]} 58. Ra3 {[%clk 0:09:42]}  Ke7 {[%clk 0:17:33]} 59. Kc6 {[%clk 0:09:50]}  Kd8 {[%clk 0:16:17]} 60. a5 {[%clk 0:06:17]}  Kc8 {[%clk 0:14:55]} 61. a6 {[%clk 0:06:28]}  Ra7 {[%clk 0:14:47]} 62. Kb5 {[%clk 0:04:49]}  Kb8 {[%clk 0:15:03]} 1/2-1/2

[Event "Argentine Superior Chess Championship 2023"]
[Site "https://www.chess.com"]
[Date "2023.10.28"]
[Round "1"]
[White "Silva, Luca"]
[Black "Perez Ponsa, Federico"]
[Result "0-1"]
[Board "2"]
[TimeControl "5400+30"]
[WhiteFideId "147370"]
[BlackFideId "117927"]
[WhiteElo "2287"]
[BlackElo "2527"]
[WhiteTeam "ARG"]
[BlackTeam "ARG"]
[WhiteClock "0:02:00"]
[BlackClock "0:28:21"]

1. d4 {[%clk 1:30:56]}  Nf6 {[%clk 1:30:52]} 2. c4 {[%clk 1:31:16]}  e6 {[%clk 1:31:04]} 3. Nf3 {[%clk 1:31:26]}  d5 {[%clk 1:31:27]} 4. g3 {[%clk 1:31:48]}  dxc4 {[%clk 1:31:04]} 5. Bg2 {[%clk 1:32:10]}  c6 {[%clk 1:31:20]} 6. Ne5 {[%clk 1:31:40]}  Bb4+ {[%clk 1:31:29]} 7. Nc3 {[%clk 1:31:51]}  Nd5 {[%clk 1:31:22]} 8. O-O {[%clk 1:32:14]}  Nxc3 {[%clk 1:30:54]} 9. bxc3 {[%clk 1:32:07]}  Bxc3 {[%clk 1:31:16]} 10. Ba3 {[%clk 1:19:28]}  Qxd4 {[%clk 1:28:43]} 11. Nxc4 {[%clk 1:19:05]}  Bxa1 {[%clk 1:18:16]} 12. Nd6+ {[%clk 1:16:46]}  Kd7 {[%clk 1:17:50]} 13. Qb1 {[%clk 1:15:34]}  Qa4 {[%clk 1:06:44]} 14. Rd1 {[%clk 1:04:40]}  Bd4 {[%clk 1:01:33]} 15. Qc1 {[%clk 0:34:23]}  e5 {[%clk 0:38:39]} 16. Nc4 {[%clk 0:10:11]}  f6 {[%clk 0:34:55]} 17. Rxd4+ {[%clk 0:07:41]}  exd4 {[%clk 0:35:07]} 18. Bh3+ {[%clk 0:07:06]}  Kd8 {[%clk 0:34:17]} 19. Bxc8 {[%clk 0:04:39]}  Kxc8 {[%clk 0:34:17]} 20. Nd6+ {[%clk 0:05:05]}  Kd7 {[%clk 0:31:13]} 21. Nf7 {[%clk 0:01:40]}  Re8 {[%clk 0:31:20]} 22. Qc5 {[%clk 0:02:05]}  Na6 {[%clk 0:28:25]} 23. Qf5+ {[%clk 0:01:39]}  Re6 {[%clk 0:27:43]} 24. Ne5+ {[%clk 0:01:33]}  fxe5 {[%clk 0:28:02]} 25. Qf7+ {[%clk 0:02:00]}  Kd8 {[%clk 0:28:21]} 0-1

[Event "Argentine Superior Chess Championship 2023"]
[Site "https://www.chess.com"]
[Date "2023.10.28"]
[Round "1"]
[White "Villca, Julian"]
[Black "Gomez, Carlos David"]
[Result "0-1"]
[Board "3"]
[TimeControl "5400+30"]
[WhiteFideId "134902"]
[BlackFideId "114669"]
[WhiteElo "2383"]
[BlackElo "2331"]
[WhiteTeam "ARG"]
[BlackTeam "ARG"]
[WhiteClock "0:00:50"]
[BlackClock "0:04:15"]

1. c4 {[%clk 1:24:45]}  e5 {[%clk 1:30:40]} 2. g3 {[%clk 1:25:06]}  Nc6 {[%clk 1:30:52]} 3. Bg2 {[%clk 1:25:30]}  f5 {[%clk 1:31:13]} 4. Nc3 {[%clk 1:25:53]}  Nf6 {[%clk 1:31:32]} 5. d3 {[%clk 1:24:24]}  Bb4 {[%clk 1:31:22]} 6. a3 {[%clk 1:12:16]}  Bxc3+ {[%clk 1:23:26]} 7. bxc3 {[%clk 1:12:44]}  d6 {[%clk 1:23:23]} 8. Nf3 {[%clk 1:12:26]}  O-O {[%clk 1:23:23]} 9. O-O {[%clk 1:09:44]}  Qe8 {[%clk 1:23:12]} 10. Nd2 {[%clk 1:04:00]}  f4 {[%clk 0:51:10]} 11. Rb1 {[%clk 0:47:32]}  b6 {[%clk 0:44:45]} 12. Nb3 {[%clk 0:35:54]}  Ng4 {[%clk 0:31:03]} 13. h3 {[%clk 0:29:53]}  Nh6 {[%clk 0:30:55]} 14. g4 {[%clk 0:24:05]}  Nf7 {[%clk 0:20:25]} 15. e3 {[%clk 0:20:32]}  fxe3 {[%clk 0:15:57]} 16. Bxe3 {[%clk 0:18:31]}  Bb7 {[%clk 0:15:04]} 17. Nd2 {[%clk 0:18:39]}  Ncd8 {[%clk 0:15:11]} 18. Ne4 {[%clk 0:18:59]}  Rb8 {[%clk 0:14:15]} 19. f4 {[%clk 0:08:08]}  exf4 {[%clk 0:14:34]} 20. Rxf4 {[%clk 0:08:36]}  Ne6 {[%clk 0:14:29]} 21. Rf5 {[%clk 0:08:39]}  Qe7 {[%clk 0:13:19]} 22. Qa4 {[%clk 0:06:39]}  Bxe4 {[%clk 0:11:49]} 23. dxe4 {[%clk 0:04:07]}  a5 {[%clk 0:10:04]} 24. Qc6 {[%clk 0:02:13]}  Ne5 {[%clk 0:09:32]} 25. Qb5 {[%clk 0:01:42]}  g6 {[%clk 0:09:28]} 26. Rff1 {[%clk 0:01:49]}  Rxf1+ {[%clk 0:07:48]} 27. Rxf1 {[%clk 0:02:18]}  Rf8 {[%clk 0:08:09]} 28. Rxf8+ {[%clk 0:02:14]}  Kxf8 {[%clk 0:07:56]} 29. Qd5 {[%clk 0:01:59]}  c6 {[%clk 0:06:26]} 30. Qd1 {[%clk 0:02:26]}  Nc5 {[%clk 0:06:01]} 31. Qb1 {[%clk 0:02:09]}  Nxc4 {[%clk 0:04:58]} 32. Bh6+ {[%clk 0:02:31]}  Ke8 {[%clk 0:04:56]} 33. Bf1 {[%clk 0:01:28]}  b5 {[%clk 0:03:44]} 34. Bxc4 {[%clk 0:01:03]}  bxc4 {[%clk 0:04:10]} 35. Qb8+ {[%clk 0:01:12]}  Kf7 {[%clk 0:04:12]} 36. Be3 {[%clk 0:00:41]}  Nxe4 {[%clk 0:04:00]} 37. Qh8 {[%clk 0:00:50]}  Qh4 {[%clk 0:04:15]} 0-1

[Event "Argentine Superior Chess Championship 2023"]
[Site "https://www.chess.com"]
[Date "2023.10.28"]
[Round "1"]
[White "Tristan, Leonardo"]
[Black "Francisco Guecamburu, Candela Be"]
[Result "1/2-1/2"]
[Board "4"]
[TimeControl "5400+30"]
[WhiteFideId "113816"]
[BlackFideId "160911"]
[WhiteElo "2523"]
[BlackElo "2345"]
[WhiteTeam "ARG"]
[BlackTeam "ARG"]
[WhiteClock "0:00:35"]
[BlackClock "0:00:43"]

1. d4 {[%clk 1:30:40]}  Nf6 {[%clk 1:30:43]} 2. c4 {[%clk 1:31:00]}  e6 {[%clk 1:31:05]} 3. Bf4 {[%clk 1:31:24]}  Bb4+ {[%clk 1:24:32]} 4. Nd2 {[%clk 1:31:47]}  O-O {[%clk 1:23:00]} 5. a3 {[%clk 1:31:39]}  Be7 {[%clk 1:22:12]} 6. e4 {[%clk 1:31:47]}  d5 {[%clk 1:22:07]} 7. e5 {[%clk 1:21:41]}  Nfd7 {[%clk 1:14:06]} 8. cxd5 {[%clk 1:13:01]}  exd5 {[%clk 1:14:13]} 9. Bd3 {[%clk 1:12:45]}  c5 {[%clk 1:06:08]} 10. Ngf3 {[%clk 1:06:35]}  Nc6 {[%clk 1:03:26]} 11. h4 {[%clk 0:59:48]}  h6 {[%clk 0:43:57]} 12. Ng5 {[%clk 0:36:16]}  Nxd4 {[%clk 0:31:57]} 13. Qh5 {[%clk 0:34:50]}  Qb6 {[%clk 0:28:08]} 14. Ndf3 {[%clk 0:21:42]}  Qxb2 {[%clk 0:17:05]} 15. Rd1 {[%clk 0:12:55]}  Nxf3+ {[%clk 0:10:27]} 16. Nxf3 {[%clk 0:13:09]}  c4 {[%clk 0:09:13]} 17. Bb1 {[%clk 0:08:20]}  Nc5 {[%clk 0:08:22]} 18. O-O {[%clk 0:08:19]}  Nd3 {[%clk 0:04:47]} 19. Bxd3 {[%clk 0:02:30]}  cxd3 {[%clk 0:05:15]} 20. Rxd3 {[%clk 0:02:51]}  Qe2 {[%clk 0:01:07]} 21. Rxd5 {[%clk 0:01:14]}  Qe4 {[%clk 0:01:32]} 22. Rd4 {[%clk 0:01:40]}  Qf5 {[%clk 0:01:59]} 23. Qxf5 {[%clk 0:01:18]}  Bxf5 {[%clk 0:02:27]} 24. Be3 {[%clk 0:00:50]}  Rfc8 {[%clk 0:01:04]} 25. Rf4 {[%clk 0:00:38]}  Be6 {[%clk 0:01:05]} 26. Rb1 {[%clk 0:00:39]}  b6 {[%clk 0:00:50]} 27. a4 {[%clk 0:00:57]}  Bc5 {[%clk 0:00:44]} 28. Nd4 {[%clk 0:00:35]}  Bd7 {[%clk 0:00:45]} 29. Ra1 {[%clk 0:00:37]}  Re8 {[%clk 0:00:54]} 30. Nf3 {[%clk 0:00:37]}  Bxe3 {[%clk 0:00:37]} 31. fxe3 {[%clk 0:01:03]}  Rac8 {[%clk 0:00:51]} 32. Rd1 {[%clk 0:00:35]}  Bc6 {[%clk 0:00:43]} 1/2-1/2

[Event "Argentine Superior Chess Championship 2023"]
[Site "https://www.chess.com"]
[Date "2023.10.28"]
[Round "1"]
[White "Peralta, Fernando"]
[Black "Miranda, Rafael"]
[Result "1-0"]
[Board "5"]
[TimeControl "5400+30"]
[WhiteFideId "105309"]
[BlackFideId "130990"]
[WhiteElo "2580"]
[BlackElo "2343"]
[WhiteTeam "ARG"]
[BlackTeam "ARG"]
[WhiteClock "0:29:09"]
[BlackClock "0:28:37"]

1. d4 {[%clk 1:30:52]}  Nf6 {[%clk 1:30:47]} 2. c4 {[%clk 1:31:14]}  g6 {[%clk 1:30:55]} 3. Nc3 {[%clk 1:31:37]}  d5 {[%clk 1:31:01]} 4. cxd5 {[%clk 1:32:01]}  Nxd5 {[%clk 1:31:25]} 5. e4 {[%clk 1:32:27]}  Nxc3 {[%clk 1:31:48]} 6. bxc3 {[%clk 1:32:55]}  Bg7 {[%clk 1:32:10]} 7. Bc4 {[%clk 1:33:21]}  c5 {[%clk 1:31:54]} 8. Ne2 {[%clk 1:33:44]}  O-O {[%clk 1:32:12]} 9. O-O {[%clk 1:34:03]}  Nc6 {[%clk 1:31:29]} 10. Be3 {[%clk 1:34:26]}  b6 {[%clk 1:30:10]} 11. Rc1 {[%clk 1:31:54]}  Bb7 {[%clk 1:29:13]} 12. Qd2 {[%clk 1:32:16]}  Rc8 {[%clk 1:08:00]} 13. Bb5 {[%clk 1:31:35]}  cxd4 {[%clk 0:51:37]} 14. cxd4 {[%clk 1:31:46]}  Qd6 {[%clk 0:51:52]} 15. d5 {[%clk 1:25:03]}  Nb8 {[%clk 0:44:55]} 16. Bd4 {[%clk 1:09:50]}  Nd7 {[%clk 0:38:41]} 17. Bxg7 {[%clk 0:50:33]}  Kxg7 {[%clk 0:39:09]} 18. Nd4 {[%clk 0:42:06]}  Nc5 {[%clk 0:36:48]} 19. Rfe1 {[%clk 0:34:18]}  Kg8 {[%clk 0:22:05]} 20. Rcd1 {[%clk 0:25:28]}  Rcd8 {[%clk 0:16:21]} 21. Bc6 {[%clk 0:16:38]}  Bxc6 {[%clk 0:12:09]} 22. Nxc6 {[%clk 0:16:52]}  Rd7 {[%clk 0:11:14]} 23. e5 {[%clk 0:16:56]}  Qxc6 {[%clk 0:11:21]} 24. dxc6 {[%clk 0:17:22]}  Rxd2 {[%clk 0:11:48]} 25. Rxd2 {[%clk 0:17:48]}  Rc8 {[%clk 0:12:10]} 26. Rc1 {[%clk 0:07:42]}  a5 {[%clk 0:11:52]} 27. g3 {[%clk 0:04:13]}  Rxc6 {[%clk 0:10:59]} 28. Kg2 {[%clk 0:04:38]}  Kg7 {[%clk 0:10:07]} 29. f4 {[%clk 0:04:38]}  Rc7 {[%clk 0:08:09]} 30. Kf3 {[%clk 0:04:18]}  Rb7 {[%clk 0:07:07]} 31. Rd5 {[%clk 0:02:34]}  f5 {[%clk 0:04:32]} 32. exf6+ {[%clk 0:02:19]}  exf6 {[%clk 0:04:05]} 33. Rb1 {[%clk 0:02:03]}  Nd7 {[%clk 0:03:36]} 34. Rxa5 {[%clk 0:02:15]}  Rc7 {[%clk 0:04:00]} 35. Rd5 {[%clk 0:02:10]}  Kf7 {[%clk 0:04:11]} 36. Rd2 {[%clk 0:01:57]}  Ra7 {[%clk 0:03:43]} 37. Rbb2 {[%clk 0:01:26]}  Ke7 {[%clk 0:03:32]} 38. Re2+ {[%clk 0:01:39]}  Kf7 {[%clk 0:03:55]} 39. Red2 {[%clk 0:01:45]}  Ke6 {[%clk 0:04:06]} 40. Re2+ {[%clk 0:32:10]}  Kf7 {[%clk 0:34:22]} 41. Rec2 {[%clk 0:31:55]}  Ke7 {[%clk 0:31:53]} 42. Rc6 {[%clk 0:30:53]}  Ra3+ {[%clk 0:28:49]} 43. Kg2 {[%clk 0:30:48]}  Rd3 {[%clk 0:28:55]} 44. Re2+ {[%clk 0:29:15]}  Kd8 {[%clk 0:28:37]} 45. Rce6 {[%clk 0:29:09]} 1-0

[Event "Argentine Superior Chess Championship 2023"]
[Site "https://www.chess.com"]
[Date "2023.10.28"]
[Round "1"]
[White "Valerga, Diego"]
[Black "Krysa, Leandro"]
[Result "1-0"]
[Board "6"]
[TimeControl "5400+30"]
[WhiteFideId "100587"]
[BlackFideId "116807"]
[WhiteElo "2428"]
[BlackElo "2546"]
[WhiteTeam "ARG"]
[BlackTeam "ARG"]
[WhiteClock "0:04:52"]
[BlackClock "0:00:34"]

1. d4 {[%clk 1:30:51]}  Nf6 {[%clk 1:30:38]} 2. Nf3 {[%clk 1:31:13]}  d5 {[%clk 1:30:32]} 3. c4 {[%clk 1:31:00]}  e6 {[%clk 1:30:44]} 4. Nc3 {[%clk 1:31:21]}  dxc4 {[%clk 1:30:46]} 5. Qa4+ {[%clk 1:30:30]}  c6 {[%clk 1:29:56]} 6. Qxc4 {[%clk 1:30:23]}  b5 {[%clk 1:29:56]} 7. Qd3 {[%clk 1:30:45]}  a6 {[%clk 1:29:39]} 8. g4 {[%clk 1:29:04]}  c5 {[%clk 1:25:30]} 9. g5 {[%clk 1:27:53]}  c4 {[%clk 1:22:44]} 10. Qc2 {[%clk 1:26:22]}  Nd5 {[%clk 1:17:23]} 11. e4 {[%clk 1:22:25]}  Nb6 {[%clk 1:14:02]} 12. Be3 {[%clk 1:18:15]}  Bb7 {[%clk 1:13:31]} 13. d5 {[%clk 1:08:58]}  exd5 {[%clk 1:08:02]} 14. O-O-O {[%clk 1:08:29]}  Bb4 {[%clk 1:02:59]} 15. Nd4 {[%clk 1:00:27]}  O-O {[%clk 0:46:43]} 16. Nf5 {[%clk 0:46:19]}  Re8 {[%clk 0:38:13]} 17. Rg1 {[%clk 0:43:46]}  g6 {[%clk 0:28:53]} 18. Nh6+ {[%clk 0:39:41]}  Kf8 {[%clk 0:29:09]} 19. a3 {[%clk 0:29:02]}  Bd6 {[%clk 0:27:33]} 20. exd5 {[%clk 0:29:22]}  N8d7 {[%clk 0:18:11]} 21. Ng4 {[%clk 0:18:14]}  b4 {[%clk 0:07:27]} 22. axb4 {[%clk 0:17:16]}  Bxb4 {[%clk 0:07:43]} 23. Rg3 {[%clk 0:11:56]}  Nc8 {[%clk 0:03:55]} 24. Rh3 {[%clk 0:08:46]}  Nd6 {[%clk 0:04:08]} 25. Rxh7 {[%clk 0:08:47]}  Kg8 {[%clk 0:04:14]} 26. Rh3 {[%clk 0:06:23]}  Rxe3 {[%clk 0:03:50]} 27. Nxe3 {[%clk 0:05:46]}  Qxg5 {[%clk 0:04:02]} 28. Kb1 {[%clk 0:06:05]}  Rc8 {[%clk 0:03:05]} 29. Rg3 {[%clk 0:06:18]}  Qh6 {[%clk 0:02:25]} 30. Bh3 {[%clk 0:06:21]}  Rc7 {[%clk 0:01:38]} 31. Bxd7 {[%clk 0:06:29]}  Rxd7 {[%clk 0:00:57]} 32. Qa4 {[%clk 0:05:07]}  Bxc3 {[%clk 0:00:52]} 33. Qxd7 {[%clk 0:05:25]}  Bb4 {[%clk 0:00:32]} 34. Qd8+ {[%clk 0:05:02]}  Kg7 {[%clk 0:00:34]} 35. Qxd6 {[%clk 0:04:52]} 1-0

[Event "Argentine Superior Chess Championship 2023"]
[Site "https://www.chess.com"]
[Date "2023.10.29"]
[Round "2"]
[White "Acosta, Pablo Ismael"]
[Black "Krysa, Leandro"]
[Result "1/2-1/2"]
[Board "1"]
[TimeControl "5400+30"]
[WhiteFideId "124311"]
[BlackFideId "116807"]
[WhiteElo "2482"]
[BlackElo "2546"]
[WhiteTeam "ARG"]
[BlackTeam "ARG"]
[WhiteClock "0:21:06"]
[BlackClock "0:02:24"]

1. d4 {[%clk 1:30:51]}  Nf6 {[%clk 1:30:43]} 2. Nf3 {[%clk 1:31:15]}  d5 {[%clk 1:30:53]} 3. c4 {[%clk 1:31:24]}  e6 {[%clk 1:30:47]} 4. g3 {[%clk 1:29:25]}  dxc4 {[%clk 1:29:27]} 5. Bg2 {[%clk 1:29:49]}  Nbd7 {[%clk 1:26:36]} 6. O-O {[%clk 1:27:13]}  c6 {[%clk 1:26:17]} 7. Qc2 {[%clk 1:23:38]}  b5 {[%clk 1:24:53]} 8. b3 {[%clk 1:23:03]}  cxb3 {[%clk 1:23:13]} 9. Qxc6 {[%clk 1:22:39]}  Rb8 {[%clk 1:22:36]} 10. axb3 {[%clk 1:21:20]}  Bb7 {[%clk 1:21:32]} 11. Qc2 {[%clk 1:21:39]}  Rc8 {[%clk 1:17:06]} 12. Qd3 {[%clk 1:19:39]}  a6 {[%clk 1:15:47]} 13. Ng5 {[%clk 1:17:16]}  Bxg2 {[%clk 1:01:20]} 14. Kxg2 {[%clk 1:17:40]}  Qb6 {[%clk 1:01:46]} 15. e4 {[%clk 1:14:30]}  h6 {[%clk 1:00:56]} 16. Nf3 {[%clk 1:14:07]}  Be7 {[%clk 0:59:21]} 17. Nbd2 {[%clk 1:05:12]}  O-O {[%clk 0:57:55]} 18. Ba3 {[%clk 1:02:08]}  Bxa3 {[%clk 0:50:52]} 19. Rxa3 {[%clk 1:02:32]}  Nb8 {[%clk 0:49:09]} 20. Rfa1 {[%clk 0:41:56]}  b4 {[%clk 0:38:12]} 21. Ra4 {[%clk 0:37:03]}  Rc3 {[%clk 0:35:50]} 22. Qb1 {[%clk 0:37:27]}  Qb7 {[%clk 0:33:17]} 23. e5 {[%clk 0:31:37]}  Nd5 {[%clk 0:32:15]} 24. Ne4 {[%clk 0:31:19]}  Rfc8 {[%clk 0:20:39]} 25. Nfd2 {[%clk 0:25:52]}  Rc2 {[%clk 0:15:19]} 26. Kh3 {[%clk 0:21:43]}  Rxd2 {[%clk 0:06:07]} 27. Nxd2 {[%clk 0:22:02]}  Nc3 {[%clk 0:06:03]} 28. Qe1 {[%clk 0:21:18]}  Nxa4 {[%clk 0:05:25]} 29. Rxa4 {[%clk 0:21:30]}  Nc6 {[%clk 0:03:38]} 30. Ne4 {[%clk 0:21:06]}  Rd8 {[%clk 0:02:24]} 1/2-1/2

[Event "Argentine Superior Chess Championship 2023"]
[Site "https://www.chess.com"]
[Date "2023.10.29"]
[Round "2"]
[White "Miranda, Rafael"]
[Black "Valerga, Diego"]
[Result "1/2-1/2"]
[Board "2"]
[TimeControl "5400+30"]
[WhiteFideId "130990"]
[BlackFideId "100587"]
[WhiteElo "2343"]
[BlackElo "2428"]
[WhiteTeam "ARG"]
[BlackTeam "ARG"]
[WhiteClock "0:29:18"]
[BlackClock "0:13:38"]

1. e4 {[%clk 1:30:52]}  c5 {[%clk 1:30:54]} 2. Nf3 {[%clk 1:31:12]}  e6 {[%clk 1:30:59]} 3. d4 {[%clk 1:31:21]}  cxd4 {[%clk 1:31:19]} 4. Nxd4 {[%clk 1:31:45]}  Nc6 {[%clk 1:31:40]} 5. Nc3 {[%clk 1:32:02]}  d6 {[%clk 1:32:03]} 6. Be3 {[%clk 1:27:54]}  Nf6 {[%clk 1:32:17]} 7. Qe2 {[%clk 1:24:32]}  a6 {[%clk 1:30:50]} 8. O-O-O {[%clk 1:24:21]}  Qc7 {[%clk 1:31:12]} 9. f4 {[%clk 1:20:22]}  h5 {[%clk 1:18:15]} 10. g3 {[%clk 1:00:21]}  Bd7 {[%clk 1:12:25]} 11. Bg2 {[%clk 1:00:15]}  Be7 {[%clk 1:11:51]} 12. Nf3 {[%clk 0:54:38]}  Rc8 {[%clk 1:06:50]} 13. Kb1 {[%clk 0:46:20]}  Ng4 {[%clk 0:54:35]} 14. Bg1 {[%clk 0:44:15]}  b5 {[%clk 0:42:33]} 15. h3 {[%clk 0:43:20]}  Nf6 {[%clk 0:35:04]} 16. e5 {[%clk 0:37:49]}  dxe5 {[%clk 0:34:29]} 17. Nxe5 {[%clk 0:37:00]}  Nxe5 {[%clk 0:17:05]} 18. fxe5 {[%clk 0:37:22]}  Nh7 {[%clk 0:17:29]} 19. Bd4 {[%clk 0:33:35]}  Bc6 {[%clk 0:11:55]} 20. Ne4 {[%clk 0:33:16]}  Bxe4 {[%clk 0:08:28]} 21. Bxe4 {[%clk 0:33:38]}  Ng5 {[%clk 0:08:31]} 22. Bg2 {[%clk 0:32:53]}  Bc5 {[%clk 0:06:36]} 23. h4 {[%clk 0:24:57]}  Nh7 {[%clk 0:06:57]} 24. Bxc5 {[%clk 0:24:53]}  Qxc5 {[%clk 0:07:21]} 25. Bb7 {[%clk 0:23:31]}  Rb8 {[%clk 0:06:21]} 26. Be4 {[%clk 0:22:57]}  g6 {[%clk 0:04:46]} 27. Qd3 {[%clk 0:21:52]}  Nf8 {[%clk 0:02:30]} 28. Rhf1 {[%clk 0:21:00]}  Qc7 {[%clk 0:02:20]} 29. Qf3 {[%clk 0:20:19]}  Rb6 {[%clk 0:01:51]} 30. Rd6 {[%clk 0:18:31]}  f5 {[%clk 0:02:04]} 31. Bc6+ {[%clk 0:13:00]}  Kf7 {[%clk 0:02:14]} 32. Rfd1 {[%clk 0:13:25]}  Kg8 {[%clk 0:02:26]} 33. Qc3 {[%clk 0:13:45]}  Rh7 {[%clk 0:02:10]} 34. Qc5 {[%clk 0:09:59]}  Rf7 {[%clk 0:01:04]} 35. a3 {[%clk 0:10:10]}  Rb8 {[%clk 0:01:14]} 36. Qd4 {[%clk 0:09:34]}  Rc8 {[%clk 0:01:22]} 37. c3 {[%clk 0:09:45]}  Qa7 {[%clk 0:01:32]} 38. Qf4 {[%clk 0:09:56]}  Qc5 {[%clk 0:01:40]} 39. Bf3 {[%clk 0:09:44]}  a5 {[%clk 0:01:43]} 40. R1d4 {[%clk 0:40:02]}  Kh7 {[%clk 0:31:33]} 41. Bd1 {[%clk 0:39:18]}  Rcc7 {[%clk 0:23:29]} 42. Bb3 {[%clk 0:38:55]}  Rfe7 {[%clk 0:23:33]} 43. Rd8 {[%clk 0:37:46]}  Red7 {[%clk 0:22:20]} 44. Qg5 {[%clk 0:35:18]}  Rxd8 {[%clk 0:19:36]} 45. Rxd8 {[%clk 0:30:24]}  Rf7 {[%clk 0:13:38]} 46. Qf4 {[%clk 0:29:18]} 1/2-1/2

[Event "Argentine Superior Chess Championship 2023"]
[Site "https://www.chess.com"]
[Date "2023.10.29"]
[Round "2"]
[White "Francisco Guecamburu, Candela Be"]
[Black "Peralta, Fernando"]
[Result "1/2-1/2"]
[Board "3"]
[TimeControl "5400+30"]
[WhiteFideId "160911"]
[BlackFideId "105309"]
[WhiteElo "2345"]
[BlackElo "2580"]
[WhiteTeam "ARG"]
[BlackTeam "ARG"]
[WhiteClock "0:10:05"]
[BlackClock "0:07:13"]

1. e4 {[%clk 1:30:37]}  c6 {[%clk 1:30:50]} 2. d4 {[%clk 1:30:45]}  d5 {[%clk 1:31:16]} 3. exd5 {[%clk 1:31:07]}  cxd5 {[%clk 1:31:33]} 4. Nf3 {[%clk 1:31:29]}  Nf6 {[%clk 1:26:29]} 5. Ne5 {[%clk 1:31:45]}  Nc6 {[%clk 1:26:42]} 6. Bb5 {[%clk 1:31:32]}  Bd7 {[%clk 1:27:03]} 7. Nxd7 {[%clk 1:31:39]}  Qxd7 {[%clk 1:27:29]} 8. c3 {[%clk 1:31:27]}  a6 {[%clk 1:25:35]} 9. Bd3 {[%clk 1:30:49]}  e5 {[%clk 1:25:31]} 10. dxe5 {[%clk 1:23:31]}  Nxe5 {[%clk 1:25:48]} 11. Bf4 {[%clk 1:07:11]}  Nxd3+ {[%clk 1:21:54]} 12. Qxd3 {[%clk 1:07:30]}  Qe6+ {[%clk 1:21:49]} 13. Qe2 {[%clk 0:55:42]}  Bc5 {[%clk 1:19:52]} 14. Nd2 {[%clk 0:50:38]}  O-O {[%clk 1:17:22]} 15. Qxe6 {[%clk 0:48:44]}  fxe6 {[%clk 1:17:47]} 16. O-O {[%clk 0:48:56]}  Nh5 {[%clk 0:39:49]} 17. Be3 {[%clk 0:31:27]}  Bxe3 {[%clk 0:38:39]} 18. fxe3 {[%clk 0:31:55]}  Nf6 {[%clk 0:38:36]} 19. e4 {[%clk 0:27:24]}  dxe4 {[%clk 0:33:03]} 20. Rae1 {[%clk 0:27:39]}  Rad8 {[%clk 0:31:36]} 21. Rf2 {[%clk 0:23:18]}  Rd3 {[%clk 0:08:58]} 22. Rfe2 {[%clk 0:14:16]}  Rfd8 {[%clk 0:08:45]} 23. Nxe4 {[%clk 0:12:27]}  Nxe4 {[%clk 0:09:09]} 24. Rxe4 {[%clk 0:12:52]}  Rd2 {[%clk 0:09:23]} 25. R1e2 {[%clk 0:09:23]}  Rxe2 {[%clk 0:08:05]} 26. Rxe2 {[%clk 0:09:51]}  Kf7 {[%clk 0:08:25]} 27. Kf2 {[%clk 0:08:53]}  Rd3 {[%clk 0:07:09]} 28. Re3 {[%clk 0:08:53]}  Rd2+ {[%clk 0:07:33]} 29. Re2 {[%clk 0:09:19]}  Rd3 {[%clk 0:06:44]} 30. Re3 {[%clk 0:09:43]}  Rd2+ {[%clk 0:07:13]} 31. Re2 {[%clk 0:10:05]} 1/2-1/2